bitfinex/quotes_ETHUSD_20250508
["timestamp","ask_amount","ask_price","bid_price","bid_amount"]
[1746725329597,4.85899925,2058.1,2057.4,5.498]
[1746725329598,4.85885039,2058.1,2057.4,5.498]
[1746725329766,0.0488175,2058.0,2057.4,5.498]
[1746725330084,10.05,2059.2,2057.4,5.498]
[1746725330085,0.25396738,2058.5,2058.0,0.8098]
[1746725330293,4.85724499,2058.8,2058.4,3.7839]
[1746725330499,4.85790624,2058.5,2058.4,0.7839]
[1746725330715,4.85801142,2058.5,2058.3,5.743]
[1746725330923,4.85801142,2058.5,2058.0,8.6428881]
[1746725330924,0.0488175,2058.8,2058.0,0.7839]
[1746725331098,4.85775288,2058.6,2058.1,4.85883226]
[1746725331289,4.85802885,2058.5,2058.0,6.5269]
[1746725331636,4.85885039,2058.1,2058.0,5.743]
[1746725332311,5.63532095,2059.1,2058.1,0.802]
[1746725332511,4.85813004,2058.5,2058.1,0.802]
[1746725332717,4.85757208,2058.7,2058.2,4.85848287]
[1746725332902,4.90577995,2058.9,2058.3,1.05193069]
[1746725333101,0.0488175,2058.9,2058.4,0.04857422]
[1746725333303,4.85780312,2058.6,2058.1,0.802]
[1746725333538,4.85755359,2058.7,2058.2,4.85860893]
[1746725333831,4.85713002,2058.9,2058.3,0.56606089]
[1746725334043,4.85678874,2059.0,2058.4,0.77]
[1746725334246,0.0488175,2059.2,2058.5,5.741]
[1746725334247,4.85767026,2058.6,2058.5,5.741]
[1746725334536,4.85885039,2058.1,2058.0,0.753]
[1746725334746,4.85885039,2058.1,2058.0,0.6494]
[1746725335036,4.85748944,2058.7,2058.0,0.6494]
[1746725335037,0.55,2058.7,2058.0,0.6494]
[1746725335194,4.85837919,2058.3,2058.0,0.6494]
[1746725335540,4.85732645,2058.8,2058.4,4.85811811]
[1746725335741,4.85769527,2058.6,2058.5,5.739]
[1746725335899,0.5988175,2058.9,2058.1,0.8142]
[1746725336102,4.8578244,2058.6,2058.2,0.0485746]
[1746725336411,4.8578244,2058.6,2058.1,6.5532]
[1746725336412,4.85815813,2058.4,2058.1,6.5532]
[1746725336617,4.85861432,2058.2,2058.1,6.5532]
[1746725337123,4.85844689,2058.3,2058.1,6.5532]
[1746725337317,4.85790624,2058.5,2058.1,7.20852]
[1746725337619,5.3832423,2058.7,2058.1,7.20852]
[1746725337937,4.85812835,2058.5,2058.1,7.20852]
[1746725338158,3.7548,2058.9,2058.1,7.20852]
[1746725338315,0.55,2058.8,2058.2,0.720852]
[1746725338519,4.85861432,2058.2,2058.1,0.8142]
[1746725338839,5.40767624,2058.6,2058.0,5.739]
[1746725339142,4.85853475,2058.3,2058.0,5.739]
[1746725339468,4.85851233,2058.3,2058.0,5.739]
[1746725339737,4.85823541,2058.4,2058.0,5.739]
[1746725339903,4.85870641,2058.2,2058.0,5.739]
[1746725340109,4.85932261,2057.9,2057.8,0.8142]
[1746725340338,4.85955875,2057.8,2057.7,5.78759143]
[1746725340541,4.85955875,2057.8,2057.2,0.7791]
[1746725340845,4.86144871,2057.0,2056.9,0.7791]
[1746725341142,4.86215782,2056.7,2056.6,6.79572482]
[1746725341448,4.86135085,2057.1,2056.6,11.6579689]
[1746725341938,4.86102104,2057.2,2056.6,6.79572482]
[1746725341939,4.86192847,2056.8,2056.6,6.79572482]
[1746725342245,4.86192847,2056.8,2056.7,0.75748248]
[1746725342545,4.86182479,2056.9,2056.7,0.75748248]
[1746725342719,4.86192143,2056.8,2056.6,1.05672482]
[1746725342920,0.0488175,2056.7,2055.9,0.8309]
[1746725343134,4.86452303,2055.7,2055.6,0.8309]
[1746725343466,10.24610944,2056.4,2055.2,4.86557645]
[1746725343467,6.1711423,2056.1,2055.2,0.8309]
[1746725343748,4.86405192,2055.9,2055.3,10.65204462]
[1746725343962,4.86486382,2055.6,2055.4,1.14829446]
[1746725344116,4.86477851,2055.6,2055.4,1.14829446]
[1746725344313,4.86463962,2055.7,2055.4,1.14829446]
[1746725344547,4.86499635,2055.5,2055.3,5.738]
[1746725344747,4.86485145,2055.6,2055.3,5.738]
[1746725345045,1.3051,2055.8,2055.4,0.04864776]
[1746725345214,0.55,2055.5,2054.8,6.5326]
[1746725345409,0.7898,2055.2,2054.4,6.5326]
[1746725345711,4.86641375,2055.0,2054.4,0.7926]
[1746725345915,4.86642654,2054.9,2054.4,8.66005227]
[1746725346127,4.86679228,2054.8,2054.4,0.7926]
[1746725346327,4.86657137,2054.9,2054.5,0.04866515]
[1746725346512,0.0488175,2054.8,2054.3,5.74]
[1746725346717,4.86661346,2054.9,2054.4,0.62267076]
[1746725346930,4.86679334,2054.8,2054.4,0.574]
[1746725347250,4.91568993,2054.8,2054.4,0.574]
[1746725347452,4.8670569,2054.7,2054.3,0.04866903]
[1746725347656,4.86687944,2054.8,2054.2,5.742]
[1746725347860,4.86689797,2054.7,2054.2,10.61004747]
[1746725348018,4.86679119,2054.8,2054.3,2.86077598]
[1746725348212,4.86715359,2054.6,2054.2,5.742]
[1746725348417,0.0488175,2054.9,2054.2,5.742]
[1746725348656,4.8677156,2054.4,2054.2,5.742]
[1746725348855,4.86783819,2054.3,2054.2,5.742]
[1746725349013,0.8118175,2054.5,2054.0,5.742]
[1746725349213,0.8118175,2054.5,2053.8,4.86893905]
[1746725349214,4.8678453,2054.3,2053.8,4.86893905]
[1746725349522,5.4176436,2054.4,2053.9,10.6594055]
[1746725349728,5.4176436,2054.4,2053.9,10.61072587]
[1746725350028,4.86791146,2054.3,2053.9,5.742]
[1746725350225,4.86853235,2054.1,2053.6,5.67909218]
[1746725350433,5.41818416,2054.2,2053.8,4.86901949]
[1746725350630,0.0488175,2054.1,2053.7,10.6130425]
[1746725350950,4.86843746,2054.1,2053.7,5.744]
[1746725351254,0.55,2054.3,2053.8,0.04868689]
[1746725351437,4.86824038,2054.2,2053.7,11.75533546]
[1746725351642,4.91705788,2054.2,2053.7,6.88630031]
[1746725351821,4.9170178,2054.2,2053.7,1.14230031]
[1746725352022,4.8686633,2054.0,2053.7,5.744]
[1746725352546,0.0488175,2054.1,2053.7,5.744]
[1746725352746,4.86810505,2054.2,2053.8,4.9176627]
[1746725352942,4.86800783,2054.3,2053.8,0.04868737]
[1746725353278,4.86800783,2054.3,2053.7,10.61315418]
[1746725353279,4.86821271,2054.2,2053.7,10.61315418]
[1746725353431,4.86823194,2054.2,2053.7,10.61316106]
[1746725353622,4.86823194,2054.2,2053.8,4.86900136]
[1746725353623,4.868218,2054.2,2053.8,4.86900136]
[1746725353947,4.86842473,2054.1,2053.7,10.61317597]
[1746725354154,4.86842473,2054.1,2053.7,11.74064731]
[1746725354457,4.91676528,2054.3,2053.7,6.87147134]
[1746725354669,4.91676528,2054.3,2053.7,11.74059654]
[1746725354859,4.91676528,2054.3,2053.7,5.99659654]
[1746725355168,0.0488175,2054.3,2053.8,5.745]
[1746725355366,4.86809956,2054.2,2053.8,5.745]
[1746725355663,5.41872601,2054.0,2053.8,5.745]
[1746725355863,5.46760371,2053.9,2053.8,5.745]
[1746725356052,5.41878621,2053.9,2053.8,5.745]
[1746725356377,5.41907923,2053.8,2053.3,18.3394]
[1746725356670,4.8698523,2053.5,2053.1,5.746]
[1746725356875,4.86998167,2053.4,2053.1,5.7947016]
[1746725357170,5.4199446,2053.5,2053.1,5.746]
[1746725357373,0.0488175,2053.4,2053.1,5.746]
[1746725357569,0.0488175,2053.4,2053.1,10.6166672]
[1746725357757,0.7847,2053.9,2053.5,4.86962111]
[1746725358068,4.86906601,2053.8,2053.4,4.86982475]
[1746725358235,4.86926343,2053.7,2053.3,4.87010648]
[1746725358437,0.7546,2054.2,2053.4,0.04869308]
[1746725358640,4.91726876,2054.1,2053.6,4.86932675]
[1746725358843,4.91721825,2054.1,2053.7,5.746]
[1746725359042,4.86854977,2054.0,2053.7,5.746]
[1746725359262,0.0488175,2054.1,2053.7,5.746]
[1746725359774,0.826,2054.5,2053.8,0.0486871]
[1746725359961,4.86763266,2054.4,2053.8,5.64758227]
[1746725360162,0.0488175,2054.3,2053.9,4.86877376]
[1746725360341,0.0488175,2054.4,2054.0,4.86842595]
[1746725360542,3.826,2054.5,2054.0,4.86842595]
[1746725360741,0.826,2054.5,2054.1,4.91694814]
[1746725361043,0.826,2054.5,2054.0,4.86843067]
[1746725361449,5.69341068,2054.5,2054.0,4.86846636]
[1746725361663,0.0488175,2054.4,2054.0,4.86846636]
[1746725361839,5.74229372,2054.5,2053.9,4.86878077]
[1746725362039,5.41771983,2054.4,2053.9,4.86878077]
[1746725362259,5.41771983,2054.4,2053.4,5.62426406]
[1746725362260,0.0488175,2054.3,2053.4,5.62426406]
[1746725362477,4.91669441,2054.3,2053.8,4.86891711]
[1746725362651,0.0488175,2054.3,2053.9,4.8686099]
[1746725362836,0.55,2054.3,2053.9,4.8686099]
[1746725363173,0.55,2054.3,2053.8,10.66391437]
[1746725363394,4.8683965,2054.1,2053.8,5.795]
[1746725363575,4.8684054,2054.1,2053.6,4.86930812]
[1746725363879,0.0488175,2054.0,2053.7,5.795]
[1746725364178,0.0488175,2054.0,2053.6,5.795]
[1746725364389,1.17923335,2054.3,2053.6,5.795]
[1746725364390,0.55,2053.8,2053.6,5.795]
[1746725364543,0.0488175,2053.7,2052.8,0.7963]
[1746725364746,0.55,2053.3,2052.9,5.795]
[1746725364969,0.0488175,2053.2,2052.7,4.87163248]
[1746725365177,0.0488175,2053.2,2052.8,5.796]
[1746725365178,5.46928186,2053.2,2052.8,5.796]
[1746725365355,4.87070262,2053.1,2052.8,5.796]
[1746725365679,4.87154325,2052.8,2052.5,23.326]
[1746725365844,4.92036075,2052.8,2052.5,23.326]
[1746725366044,4.92012186,2052.9,2052.5,17.53]
[1746725366483,4.92012859,2052.9,2052.5,17.53]
[1746725366643,4.87141318,2052.8,2052.5,17.53]
[1746725366843,4.87128801,2052.9,2052.5,17.53]
[1746725367050,4.87152966,2052.8,2052.5,17.53]
[1746725367785,4.87152966,2052.8,2052.5,23.326]
[1746725368193,4.87173661,2052.7,2052.3,4.87255051]
[1746725368349,4.8732834,2052.1,2051.6,0.7839]
[1746725368548,4.87325039,2052.1,2051.6,5.65810721]
[1746725368775,4.87373197,2051.9,2051.6,5.797]
[1746725368973,0.0488175,2052.1,2051.6,10.67114447]
[1746725369171,4.92208169,2052.1,2051.6,11.73825892]
[1746725369389,4.87332614,2052.0,2051.6,11.73825892]
[1746725369952,0.5988175,2052.2,2051.8,4.87358609]
[1746725370187,0.0488175,2052.2,2051.8,4.87358609]
[1746725370490,0.0488175,2052.2,2051.7,4.873864]
[1746725370491,4.92182286,2052.2,2051.7,4.873864]
[1746725370655,4.87310305,2052.1,2051.7,1.66122964]
[1746725370856,4.87310305,2052.1,2051.7,9.53522282]
[1746725371176,4.92176941,2052.2,2051.7,9.53506591]
[1746725371352,0.8239,2052.1,2051.3,6.5829]
[1746725371676,5.42362899,2051.9,2051.4,4.92329501]
[1746725371890,5.42362899,2051.9,2051.4,10.72229501]
[1746725372099,4.87431413,2051.6,2051.4,5.799]
[1746725372415,0.55,2051.7,2051.4,5.799]
[1746725372572,4.92321062,2051.6,2051.4,5.799]
[1746725372879,0.0488175,2051.6,2051.4,5.799]
[1746725373073,4.92315684,2051.6,2051.4,5.799]
[1746725373274,4.92315684,2051.6,2051.2,10.67406277]
[1746725373499,4.92315684,2051.6,2051.2,5.799]
[1746725373687,0.0488175,2051.6,2051.2,5.799]
[1746725373885,4.87495734,2051.3,2051.2,5.799]
[1746725374092,0.55,2051.5,2051.2,5.799]
[1746725374290,4.87492482,2051.4,2050.9,28.21477521]
[1746725374492,4.87496605,2051.3,2050.9,23.339]
[1746725374712,4.87504938,2051.3,2050.9,23.339]
[1746725375284,0.55,2051.1,2050.9,17.54]
[1746725375491,5.42511111,2051.3,2050.9,17.54]
[1746725375707,4.87520828,2051.2,2050.9,17.54]
[1746725376212,0.5988175,2051.5,2050.9,20.44408929]
[1746725376381,1.3035,2051.6,2050.9,20.44408929]
[1746725376382,4.87557113,2051.1,2050.9,17.54]
[1746725376586,0.55,2051.1,2050.9,17.54]
[1746725376787,0.55,2051.1,2050.9,23.34]
[1746725376988,4.87499973,2051.3,2050.9,23.34]
[1746725377189,4.8752183,2051.2,2050.9,25.674]
[1746725377487,4.87499973,2051.3,2050.9,23.34]
[1746725377691,0.55,2051.4,2050.9,23.341]
[1746725377891,4.92387403,2051.3,2050.9,23.341]
[1746725378092,4.87525212,2051.2,2050.9,23.341]
[1746725378292,4.8756704,2051.0,2050.9,23.341]
[1746725378508,0.0488175,2051.1,2050.9,23.341]
[1746725378509,5.42552323,2051.1,2050.9,23.341]
[1746725378810,0.0488175,2051.1,2050.9,23.341]
[1746725378972,4.8756704,2051.0,2050.9,23.341]
[1746725379176,4.9244879,2051.0,2050.9,23.341]
[1746725379473,4.92439965,2051.1,2050.9,17.54]
[1746725379922,4.87576662,2051.0,2050.8,5.801]
[1746725380115,4.87439813,2051.1,2050.8,5.801]
[1746725380511,0.55,2051.4,2050.8,12.28218755]
[1746725380689,0.55,2051.4,2050.8,7.35736608]
[1746725380884,4.87536226,2051.2,2050.9,5.802]
[1746725381218,4.87544811,2051.1,2050.9,5.802]
[1746725381420,0.7535,2051.6,2050.9,7.0253606]
[1746725381622,4.87466249,2051.5,2051.1,4.87533614]
[1746725382322,4.87529892,2051.2,2050.9,5.802]
[1746725382528,4.87508778,2051.3,2050.9,10.67787506]
[1746725382728,4.87508778,2051.3,2050.9,10.67789297]
[1746725383026,4.87522727,2051.2,2051.0,5.802]
[1746725383234,5.42509945,2051.3,2051.0,5.802]
[1746725383601,4.87464111,2051.5,2051.0,10.67760077]
[1746725383824,0.8252,2051.9,2051.1,0.85975386]
[1746725383990,4.8737783,2051.8,2051.4,4.87463245]
[1746725384194,4.87401099,2051.7,2051.5,5.803]
[1746725384410,4.87424449,2051.6,2051.5,5.803]
[1746725384601,4.87416159,2051.7,2051.5,5.803]
[1746725384802,4.87376937,2051.8,2051.5,5.803]
[1746725385035,4.8741899,2051.7,2051.5,5.803]
[1746725385332,4.87424449,2051.6,2051.5,5.803]
[1746725385632,0.55,2051.7,2051.3,4.87495248]
[1746725385857,4.8741888,2051.7,2051.5,5.803]
[1746725386035,4.87462366,2051.5,2051.1,5.68627702]
[1746725386196,4.87462366,2051.5,2051.2,5.803]
[1746725386597,4.87439035,2051.6,2051.2,5.803]
[1746725386816,4.87439035,2051.6,2051.2,10.6781773]
[1746725387231,4.87439035,2051.6,2051.2,6.65416837]
[1746725387511,4.87439035,2051.6,2051.2,11.52933751]
[1746725387713,0.55,2051.8,2051.2,6.65416837]
[1746725388048,0.55,2051.8,2051.3,0.04874532]
[1746725388049,4.87384513,2051.8,2051.3,0.04874532]
[1746725388352,4.87384513,2051.8,2051.4,4.87458269]
[1746725388513,4.87370459,2051.9,2051.3,1.23893079]
[1746725388713,4.87370459,2051.9,2051.4,4.87452896]
[1746725389050,4.87370459,2051.9,2051.5,4.87444728]
[1746725389564,4.87370459,2051.9,2051.4,4.87461581]
[1746725389779,4.87385753,2051.8,2051.4,6.68761104]
[1746725389990,1.3419,2051.7,2050.5,0.67787179]
[1746725390131,4.8760049,2050.9,2050.7,5.828]
[1746725390336,3.0,2051.4,2050.7,5.828]
[1746725390337,4.87580125,2051.0,2050.7,5.828]
[1746725390781,4.87562905,2051.1,2050.7,5.87675862]
[1746725390937,4.87562905,2051.1,2050.7,6.48804163]
[1746725391135,4.87562905,2051.1,2050.4,6.57542704]
[1746725391136,4.87606844,2050.9,2050.8,5.828]
[1746725391439,4.87670574,2050.6,2050.4,0.8224]
[1746725391649,4.87653118,2050.7,2050.5,5.828]
[1746725391967,0.04874057,2050.9,2050.5,5.828]
[1746725392170,4.87633452,2050.8,2050.6,5.829]
[1746725392377,0.59874057,2050.7,2050.3,5.829]
[1746725392572,4.8767493,2050.6,2050.3,5.829]
[1746725392977,4.87690371,2050.5,2050.3,5.829]
[1746725393180,4.87675546,2050.6,2050.3,5.829]
[1746725393484,4.87638367,2050.7,2050.3,5.829]
[1746725393642,4.87624233,2050.8,2050.4,4.92574681]
[1746725394136,4.87647978,2050.7,2050.3,13.53216993]
[1746725394332,4.87630504,2050.8,2050.4,4.87697175]
[1746725394578,4.87615946,2050.8,2050.4,4.92573613]
[1746725394735,4.87615946,2050.8,2050.4,6.77153595]
[1746725395135,4.87615946,2050.8,2050.4,1.8945642]
[1746725395352,0.04874057,2050.7,2050.2,5.829]
[1746725395543,4.87662147,2050.6,2050.2,5.87777058]
[1746725395772,0.32103075,2050.7,2050.2,5.87777058]
[1746725395980,4.87692154,2050.5,2050.2,5.87777058]
[1746725396180,4.87687767,2050.5,2050.2,5.87777058]
[1746725396384,4.87687767,2050.5,2050.2,5.87777057]
[1746725396689,4.87757291,2050.2,2050.1,17.553]
[1746725396849,0.27246368,2050.4,2050.1,23.382]
[1746725397054,5.14969917,2050.4,2050.1,23.382]
[1746725397436,0.27246368,2050.3,2050.1,23.382]
[1746725398039,0.27246368,2050.3,2050.1,22.43079201]
[1746725398271,4.92563775,2050.5,2050.2,5.83]
[1746725399038,0.27277727,2050.4,2050.2,5.83]
[1746725399571,0.27277727,2050.3,2050.2,5.83]
[1746725399740,5.15011229,2050.3,2050.2,5.83]
[1746725400084,0.27277727,2050.3,2050.2,5.83]
[1746725400449,4.87724056,2050.4,2050.2,5.83]
[1746725400683,5.47549415,2050.6,2050.2,5.83]
[1746725400884,0.7964,2051.1,2050.3,0.04877342]
[1746725401050,4.87553954,2051.1,2050.7,4.87617607]
[1746725401256,0.72728105,2051.0,2050.9,4.87590813]
[1746725401450,0.72728105,2051.0,2050.9,3.0]
[1746725401655,0.72728105,2051.0,2050.8,11.50369687]
[1746725401859,0.45455066,2051.0,2050.8,6.6277]
[1746725402053,0.04874057,2051.0,2050.4,3.8315]
[1746725402388,5.42603242,2050.9,2050.7,5.83]
[1746725402569,4.92451846,2051.0,2050.7,5.83]
[1746725402887,0.27289923,2050.8,2050.7,10.70638367]
[1746725403069,0.27289923,2050.8,2050.7,14.52868367]
[1746725403491,4.87503814,2051.3,2050.9,4.87584282]
[1746725403984,4.87425908,2051.6,2050.7,9.6523]
[1746725403985,4.87460452,2051.5,2051.1,4.87541064]
[1746725404191,4.87424449,2051.6,2051.2,5.83]
[1746725404485,4.87495734,2051.3,2051.2,5.83]
[1746725404729,5.14759667,2051.4,2051.2,5.83]
[1746725404730,0.27287697,2051.4,2051.2,5.83]
[1746725405256,5.14776363,2051.4,2051.2,5.83]
[1746725405452,4.87488666,2051.4,2051.2,5.83]
[1746725405680,4.92334906,2051.5,2051.2,5.83]
[1746725405852,4.87481387,2051.4,2051.2,5.83]
[1746725406186,4.92369791,2051.3,2051.2,5.83]
[1746725406343,6.10617973,2051.3,2051.2,5.83]
[1746725407683,0.90959062,2051.3,2051.2,5.83]
[1746725407984,0.45481868,2051.3,2051.2,6.413]
[1746725408344,0.45481868,2051.3,2051.2,11.33694399]
[1746725408549,0.45481868,2051.3,2051.2,11.288195]
[1746725408779,0.45481868,2051.3,2051.2,31.851195]
[1746725408943,0.85224057,2052.2,2051.2,32.60578544]
[1746725408944,4.87318613,2052.1,2051.2,32.60578544]
[1746725409285,0.55,2051.8,2051.2,24.7307]
[1746725409578,5.48289414,2052.1,2051.6,4.87418952]
[1746725409794,5.32795422,2052.0,2051.7,5.83]
[1746725409999,0.04874057,2051.9,2051.7,5.83]
[1746725410299,6.10409515,2051.9,2051.7,5.83]
[1746725410504,5.3280814,2051.9,2051.7,5.83]
[1746725410870,4.92250994,2051.8,2051.7,5.83]
[1746725411176,4.87348181,2052.0,2051.7,5.83]
[1746725411377,0.27266159,2051.9,2051.7,10.70387162]
[1746725411696,0.27266159,2051.9,2051.7,5.83]
[1746725411900,0.04874057,2052.1,2051.8,4.87376937]
[1746725412077,4.87297213,2052.2,2051.8,5.72279886]
[1746725412264,0.86894057,2052.5,2051.8,0.8004]
[1746725412265,0.04874057,2052.1,2051.8,0.8004]
[1746725412465,4.87294934,2052.2,2051.7,6.413]
[1746725412701,3.0,2052.3,2051.7,10.7527257]
[1746725412702,4.9219569,2052.1,2051.7,10.7527257]
[1746725412910,4.9219569,2052.1,2051.7,10.70399102]
[1746725413518,0.04874057,2052.2,2051.7,5.83]
[1746725413707,9.74510996,2052.4,2052.0,0.8128]
[1746725414000,4.87247583,2052.4,2052.0,0.8128]
[1746725414306,4.8728306,2052.2,2052.0,0.8128]
[1746725414512,4.87350656,2052.0,2051.6,0.8128]
[1746725414826,4.92135616,2052.3,2051.7,5.87673374]
[1746725414975,4.873576,2051.9,2051.7,5.828]
[1746725415296,4.87321947,2052.1,2051.8,5.828]
[1746725415609,4.92196004,2052.1,2051.8,5.828]
[1746725415774,4.87329434,2052.0,2051.6,0.8128]
[1746725415975,4.87329434,2052.0,2051.7,5.828]
[1746725415976,4.87376937,2051.8,2051.7,5.828]
[1746725416213,0.7815,2052.0,2051.7,5.828]
[1746725416375,0.04874057,2052.1,2051.7,11.77212979]
[1746725416575,0.04874057,2052.1,2051.7,6.898248]
[1746725416877,0.7815,2052.3,2051.8,0.8016]
[1746725417111,4.87259524,2052.3,2051.9,0.04873065]
[1746725417324,4.87282799,2052.2,2051.8,5.67523547]
[1746725417692,4.92133581,2052.3,2051.8,5.67520432]
[1746725417888,4.87300936,2052.2,2051.8,5.6752651]
[1746725418203,4.87335553,2052.0,2051.5,6.9065]
[1746725418400,0.04874057,2051.9,2051.6,5.828]
[1746725418633,4.92221018,2052.0,2051.6,4.8741265]
[1746725418933,0.7935,2052.1,2051.7,5.828]
[1746725419138,4.87376937,2051.8,2051.7,5.828]
[1746725419444,4.87368216,2051.9,2051.7,5.828]
[1746725420231,5.42346195,2052.0,2051.7,5.828]
[1746725420425,0.59874057,2052.0,2051.7,5.828]
[1746725420802,5.71539302,2052.1,2051.7,10.70191533]
[1746725420992,0.84224057,2052.1,2051.7,5.828]
[1746725421193,0.84224057,2052.1,2051.3,6.11]
[1746725421194,4.87414828,2051.7,2051.3,6.11]
[1746725421393,4.87414828,2051.7,2051.3,10.98493004]
[1746725421638,4.92288885,2051.7,2051.4,5.756]
[1746725421956,9.79713292,2051.7,2051.4,5.756]
[1746725422239,4.92288885,2051.7,2051.4,5.756]
[1746725423495,0.04874057,2051.7,2051.4,5.756]
[1746725423699,4.87483214,2051.4,2050.9,5.67173129]
[1746725423901,4.87483214,2051.4,2051.0,10.63155856]
[1746725424113,4.92357271,2051.4,2051.0,10.63155856]
[1746725424404,4.87432446,2051.6,2051.2,4.87510078]
[1746725424606,0.04874057,2051.6,2051.0,5.756]
[1746725424810,0.04874057,2051.6,2051.1,0.9362387]
[1746725425014,0.04874057,2051.6,2051.1,0.98498769]
[1746725425214,0.04874057,2051.6,2051.3,4.87483151]
[1746725425531,0.04874057,2051.7,2051.2,4.87505131]
[1746725425739,4.92290049,2051.7,2051.3,4.87485626]
[1746725425911,4.87428547,2051.6,2051.1,8.81161785]
[1746725426097,0.04874057,2051.7,2051.1,0.9362387]
[1746725426295,0.04874057,2051.7,2051.1,4.87536047]
[1746725426529,4.87472112,2051.4,2051.0,10.63155132]
[1746725426734,4.87472112,2051.4,2051.1,4.87541154]
[1746725426922,0.04874057,2051.5,2051.0,5.756]
[1746725427234,0.04874057,2051.7,2051.1,5.756]
[1746725427402,4.87424449,2051.6,2051.1,5.756]
[1746725427605,4.8747197,2051.4,2051.1,5.756]
[1746725427827,4.87498211,2051.3,2051.1,5.756]
[1746725428138,0.04874057,2051.2,2050.8,17.557]
[1746725428336,4.87564042,2051.1,2050.9,5.756]
[1746725428639,4.8756704,2051.0,2050.9,5.756]
[1746725428836,4.92441097,2051.0,2050.9,5.756]
[1746725429413,0.04874057,2051.1,2050.9,5.756]
[1746725429730,4.87547806,2051.1,2050.9,5.756]
[1746725429936,4.92421863,2051.1,2050.9,5.756]
[1746725430309,0.04874057,2051.1,2050.9,5.756]
[1746725430618,4.87506401,2051.3,2050.9,13.40070902]
[1746725431118,4.87506401,2051.3,2050.9,8.52492013]
[1746725431443,4.87532793,2051.2,2050.9,5.706]
[1746725431650,4.92408886,2051.2,2050.9,5.706]
[1746725431809,4.87545754,2051.1,2050.9,5.706]
[1746725432011,4.87529252,2051.2,2050.9,5.706]
[1746725432947,0.769,2051.4,2050.9,10.63061454]
[1746725433138,4.87461637,2051.5,2051.1,5.65582287]
[1746725433332,5.68560253,2051.6,2051.1,0.7804]
[1746725433333,4.87472119,2051.4,2051.1,0.7804]
[1746725433534,9.74933844,2051.5,2051.1,5.65582707]
[1746725433855,1.02344043,2052.2,2051.4,3.0]
[1746725434016,0.45443019,2052.1,2051.7,3.0]
[1746725434216,0.45443019,2052.1,2051.9,4.87335324]
[1746725434417,0.45443019,2052.1,2052.0,5.757]
[1746725434633,0.01133228,2052.2,2052.0,5.757]
[1746725434829,0.01133228,2052.2,2052.0,10.63028386]
[1746725435037,0.01133228,2052.2,2052.0,5.757]
[1746725435231,0.01133228,2052.2,2052.1,5.44875686]
[1746725435435,0.01133228,2052.2,2052.1,0.5757]
[1746725435618,0.01133228,2052.2,2052.1,5.49748207]
[1746725436317,0.01133228,2052.2,2052.1,4.3912]
[1746725436560,0.01133228,2052.2,2052.1,1.3912]
[1746725436759,0.01133228,2052.2,2052.1,5.757]
[1746725437124,0.01133228,2052.2,2052.1,10.67878231]
[1746725437350,0.01133228,2052.2,2052.1,10.63005686]
[1746725437624,0.01133228,2052.2,2052.1,5.757]
[1746725437961,0.01133228,2052.2,2052.1,10.62905686]
[1746725438161,0.01133228,2052.2,2052.1,18.85799675]
[1746725440561,0.01133228,2052.2,2052.1,0.8155]
[1746725440758,0.01133228,2052.2,2051.9,22.9432423]
[1746725440759,4.87320802,2052.1,2052.0,5.755]
[1746725441059,0.01133228,2052.2,2052.0,5.755]
[1746725441260,4.87305686,2052.1,2052.0,5.755]
[1746725441629,4.88430079,2052.2,2052.0,5.755]
[1746725443680,0.01133228,2052.2,2052.0,5.755]
[1746725444038,0.01133228,2052.2,2052.0,10.62824443]
[1746725444341,0.01133228,2052.2,2052.0,12.86949907]
[1746725444682,0.01133228,2052.2,2052.0,5.755]
[1746725444838,0.06007285,2052.2,2052.0,5.755]
[1746725445043,0.01133228,2052.2,2052.0,5.755]
[1746725445390,4.88426197,2052.2,2052.0,5.755]
[1746725445558,0.01133228,2052.2,2052.0,5.755]
[1746725445753,0.01133228,2052.2,2052.0,13.49577328]
[1746725445942,0.01133228,2052.2,2052.0,13.44704542]
[1746725446852,0.01133228,2052.2,2052.0,18.32020389]
[1746725447045,0.01133228,2052.2,2052.0,13.44700901]
[1746725448784,4.87305686,2052.1,2052.0,5.755]
[1746725448985,5.70779743,2052.1,2052.0,5.755]
[1746725449192,4.87430079,2051.6,2051.2,0.7698]
[1746725449387,4.87376859,2051.9,2051.3,5.755]
[1746725449686,4.87440569,2051.6,2051.3,5.755]
[1746725449884,1.336,2052.1,2051.3,11.55240329]
[1746725449885,0.786,2052.1,2051.3,11.55240329]
[1746725450091,0.01133228,2052.2,2051.8,4.87362892]
[1746725450261,0.01133228,2052.2,2051.9,11.39820439]
[1746725450609,0.01133228,2052.2,2052.0,0.04872747]
[1746725451142,4.88424459,2052.2,2051.9,6.5248]
[1746725451783,0.01133228,2052.2,2051.9,6.5248]
[1746725452101,0.01133228,2052.2,2052.0,4.87327433]
[1746725452402,0.01133228,2052.2,2052.1,4.87305686]
[1746725452911,0.01133228,2052.2,2052.1,7.87305686]
[1746725453208,0.01133228,2052.2,2052.1,8.65145686]
[1746725454297,0.01133228,2052.2,2052.1,8.70017393]
[1746725454463,0.01133228,2052.2,2052.1,17.88267931]
[1746725454791,0.01133228,2052.2,2052.1,17.83396224]
[1746725457005,0.01133228,2052.2,2052.1,21.38396224]
[1746725457201,0.01133228,2052.2,2052.1,34.81866124]
[1746725457415,0.01133228,2052.2,2052.1,26.86733924]
[1746725458488,0.01133228,2052.2,2052.1,28.13836224]
[1746725458706,0.04874057,2053.3,2053.2,4.87044613]
[1746725458886,0.8208,2053.4,2053.2,5.643]
[1746725459081,5.67348619,2053.6,2053.2,5.643]
[1746725459414,5.67348619,2053.6,2053.2,10.51336039]
[1746725459616,0.85264057,2053.6,2053.2,10.51335729]
[1746725459828,5.72216415,2053.6,2053.2,10.51335729]
[1746725460316,4.86935764,2053.7,2053.3,4.87019901]
[1746725460504,4.86966252,2053.6,2053.2,5.52324]
[1746725460719,4.86966252,2053.6,2053.1,0.7559]
[1746725460720,4.86973459,2053.5,2053.1,0.7559]
[1746725460890,4.87055132,2053.2,2053.1,5.643]
[1746725461205,4.87115787,2052.9,2052.8,23.193]
[1746725461407,0.7873,2052.9,2052.8,23.193]